[Event "Titled Tuesday Blitz March 21 Late 2023"]
[White "K2JW"]
[Black "Ben Artzi, Ido"]
[BlackFideId "2810913"]
[WhiteElo "2313"]
[BlackElo "2204"]
[Result "0-1"]
[Round "02"]
[TimeControl "180+2"]
[Date "2023.03.21"]
[WhiteClock "0:00:03"]
[BlackClock "0:00:09"]

1. d4 {[%clk 0:03:00]}  Nf6 {[%clk 0:02:59]} 2. c4 {[%clk 0:03:00]}  c5 {[%clk 0:02:57]} 3. d5 {[%clk 0:03:00]}  b5 {[%clk 0:02:49]} 4. cxb5 {[%clk 0:03:00]}  a6 {[%clk 0:02:49]} 5. e3 {[%clk 0:03:00]}  g6 {[%clk 0:02:47]} 6. Nc3 {[%clk 0:02:48]}  Bg7 {[%clk 0:02:46]} 7. Nf3 {[%clk 0:02:39]}  O-O {[%clk 0:02:46]} 8. Be2 {[%clk 0:02:27]}  Bb7 {[%clk 0:02:45]} 9. O-O {[%clk 0:02:24]}  e6 {[%clk 0:02:45]} 10. e4 {[%clk 0:02:09]}  exd5 {[%clk 0:02:42]} 11. exd5 {[%clk 0:01:59]}  d6 {[%clk 0:02:14]} 12. Bg5 {[%clk 0:01:53]}  axb5 {[%clk 0:02:11]} 13. Bxb5 {[%clk 0:01:49]}  Na6 {[%clk 0:02:11]} 14. Bc4 {[%clk 0:01:18]}  Nc7 {[%clk 0:02:08]} 15. Qd2 {[%clk 0:01:15]}  Qc8 {[%clk 0:02:04]} 16. Rfd1 {[%clk 0:01:10]}  Qf5 {[%clk 0:02:00]} 17. Bd3 {[%clk 0:00:51]}  Qd7 {[%clk 0:01:54]} 18. Bc4 {[%clk 0:00:49]}  Rfe8 {[%clk 0:01:53]} 19. a4 {[%clk 0:00:46]}  Ne4 {[%clk 0:01:52]} 20. Nxe4 {[%clk 0:00:46]}  Rxe4 {[%clk 0:01:53]} 21. Bb3 {[%clk 0:00:37]}  Rb4 {[%clk 0:01:53]} 22. Ra3 {[%clk 0:00:34]}  Qf5 {[%clk 0:01:33]} 23. Be7 {[%clk 0:00:25]}  Qd7 {[%clk 0:01:18]} 24. Bg5 {[%clk 0:00:21]}  Re8 {[%clk 0:01:18]} 25. a5 {[%clk 0:00:13]}  Ba6 {[%clk 0:01:16]} 26. Be3 {[%clk 0:00:06]}  Nb5 {[%clk 0:01:15]} 27. Ba4 {[%clk 0:00:06]}  Rxb2 {[%clk 0:01:07]} 28. Qe1 {[%clk 0:00:06]}  Qb7 {[%clk 0:01:01]} 29. Rb1 {[%clk 0:00:06]}  Nxa3 {[%clk 0:00:38]} 30. Rxb2 {[%clk 0:00:05]}  Bxb2 {[%clk 0:00:32]} 31. Bxe8 {[%clk 0:00:06]}  Qe7 {[%clk 0:00:24]} 32. Bc6 {[%clk 0:00:02]}  c4 {[%clk 0:00:17]} 33. h3 {[%clk 0:00:02]}  c3 {[%clk 0:00:17]} 34. Nd4 {[%clk 0:00:02]}  c2 {[%clk 0:00:16]} 35. Nxc2 {[%clk 0:00:02]}  Nxc2 {[%clk 0:00:16]} 36. Qd2 {[%clk 0:00:03]}  Qe4 {[%clk 0:00:09]} 0-1


[Site "https://www.chess.com"]

[Event "Titled Tuesday Blitz March 21 Late 2023"]
[White "Vifleemskaia, Svetlana"]
[Black "Papayan, Oleg"]
[WhiteFideId "4129490"]
[BlackFideId "4193911"]
[WhiteElo "1930"]
[BlackElo "2153"]
[Result "0-1"]
[Round "02"]
[TimeControl "180+2"]
[Date "2023.03.21"]
[WhiteClock "0:00:01"]
[BlackClock "0:00:03"]

1. d4 {[%clk 0:02:58]}  Nf6 {[%clk 0:02:59]} 2. c4 {[%clk 0:02:57]}  e6 {[%clk 0:02:58]} 3. Nc3 {[%clk 0:02:57]}  Bb4 {[%clk 0:02:58]} 4. e3 {[%clk 0:02:57]}  O-O {[%clk 0:02:58]} 5. Ne2 {[%clk 0:02:57]}  c6 {[%clk 0:02:58]} 6. a3 {[%clk 0:02:57]}  Ba5 {[%clk 0:02:58]} 7. b4 {[%clk 0:02:56]}  Bc7 {[%clk 0:02:59]} 8. f4 {[%clk 0:02:56]}  d5 {[%clk 0:02:56]} 9. Ng3 {[%clk 0:02:54]}  a5 {[%clk 0:02:50]} 10. Bd2 {[%clk 0:02:53]}  axb4 {[%clk 0:02:40]} 11. axb4 {[%clk 0:02:54]}  Rxa1 {[%clk 0:02:39]} 12. Qxa1 {[%clk 0:02:53]}  Qe7 {[%clk 0:02:26]} 13. Qb2 {[%clk 0:02:48]}  dxc4 {[%clk 0:02:11]} 14. Bxc4 {[%clk 0:02:46]}  b5 {[%clk 0:02:11]} 15. Be2 {[%clk 0:02:28]}  Na6 {[%clk 0:01:51]} 16. Nce4 {[%clk 0:02:21]}  Nd5 {[%clk 0:01:13]} 17. Nc5 {[%clk 0:02:20]}  Nxc5 {[%clk 0:00:59]} 18. bxc5 {[%clk 0:02:17]}  f6 {[%clk 0:00:54]} 19. O-O {[%clk 0:01:57]}  e5 {[%clk 0:00:54]} 20. Bd3 {[%clk 0:01:15]}  exf4 {[%clk 0:00:46]} 21. exf4 {[%clk 0:01:11]}  f5 {[%clk 0:00:34]} 22. Re1 {[%clk 0:00:48]}  Qf6 {[%clk 0:00:35]} 23. Re5 {[%clk 0:00:32]}  Bxe5 {[%clk 0:00:30]} 24. dxe5 {[%clk 0:00:31]}  Qe7 {[%clk 0:00:26]} 25. Qc2 {[%clk 0:00:28]}  g6 {[%clk 0:00:23]} 26. Ne2 {[%clk 0:00:18]}  Bd7 {[%clk 0:00:16]} 27. Nd4 {[%clk 0:00:18]}  Ra8 {[%clk 0:00:17]} 28. g3 {[%clk 0:00:14]}  Ra4 {[%clk 0:00:16]} 29. Nb3 {[%clk 0:00:09]}  Nb4 {[%clk 0:00:10]} 30. Bxb4 {[%clk 0:00:07]}  Rxb4 {[%clk 0:00:11]} 31. Qc3 {[%clk 0:00:06]}  Ra4 {[%clk 0:00:09]} 32. Nd4 {[%clk 0:00:05]}  Be8 {[%clk 0:00:04]} 33. Qb3+ {[%clk 0:00:03]}  Bf7 {[%clk 0:00:03]} 34. Qc3 {[%clk 0:00:02]}  Bd5 {[%clk 0:00:03]} 35. Kf2 {[%clk 0:00:01]}  Qa7 {[%clk 0:00:03]} 0-1


[Site "https://www.chess.com"]

[Event "Titled Tuesday Blitz March 21 Late 2023"]
[White "Ladan, Nicholas"]
[Black "Itkis, Boris"]
[WhiteFideId "30918855"]
[BlackFideId "1209167"]
[WhiteElo "2167"]
[BlackElo "2216"]
[Result "1-0"]
[Round "02"]
[TimeControl "180+2"]
[Date "2023.03.21"]
[WhiteClock "0:01:33"]
[BlackClock "0:00:43"]

1. d4 {[%clk 0:02:59]}  d5 {[%clk 0:02:58]} 2. Bf4 {[%clk 0:02:55]}  Nf6 {[%clk 0:02:57]} 3. e3 {[%clk 0:02:55]}  c5 {[%clk 0:02:57]} 4. c3 {[%clk 0:02:56]}  Nc6 {[%clk 0:02:58]} 5. Nd2 {[%clk 0:02:56]}  Bf5 {[%clk 0:02:58]} 6. Bb5 {[%clk 0:02:52]}  e6 {[%clk 0:02:52]} 7. Ngf3 {[%clk 0:02:50]}  Qb6 {[%clk 0:02:52]} 8. Qa4 {[%clk 0:02:48]}  a6 {[%clk 0:02:45]} 9. Bxc6+ {[%clk 0:02:47]}  Qxc6 {[%clk 0:02:44]} 10. Qxc6+ {[%clk 0:02:47]}  bxc6 {[%clk 0:02:45]} 11. Ne5 {[%clk 0:02:47]}  Rc8 {[%clk 0:02:45]} 12. Nb3 {[%clk 0:02:46]}  Nd7 {[%clk 0:02:30]} 13. Na5 {[%clk 0:02:40]}  Nxe5 {[%clk 0:02:27]} 14. Bxe5 {[%clk 0:02:41]}  f6 {[%clk 0:02:26]} 15. Bg3 {[%clk 0:02:40]}  Kd7 {[%clk 0:02:24]} 16. Kd2 {[%clk 0:02:39]}  Bd6 {[%clk 0:02:22]} 17. Bxd6 {[%clk 0:02:35]}  Kxd6 {[%clk 0:02:22]} 18. b4 {[%clk 0:02:36]}  c4 {[%clk 0:02:13]} 19. Nb7+ {[%clk 0:02:32]}  Kc7 {[%clk 0:02:11]} 20. Nc5 {[%clk 0:02:32]}  Kb6 {[%clk 0:02:09]} 21. f3 {[%clk 0:02:25]}  Bg6 {[%clk 0:02:03]} 22. Nxe6 {[%clk 0:02:23]}  Rhe8 {[%clk 0:02:00]} 23. Nc5 {[%clk 0:02:21]}  Re7 {[%clk 0:02:01]} 24. a4 {[%clk 0:02:17]}  Rce8 {[%clk 0:02:00]} 25. a5+ {[%clk 0:02:17]}  Ka7 {[%clk 0:02:00]} 26. Rae1 {[%clk 0:02:17]}  h6 {[%clk 0:01:59]} 27. h4 {[%clk 0:02:16]}  f5 {[%clk 0:01:59]} 28. h5 {[%clk 0:02:16]}  Bh7 {[%clk 0:02:00]} 29. Rhg1 {[%clk 0:02:14]}  Rf8 {[%clk 0:01:57]} 30. Ke2 {[%clk 0:02:09]}  Rfe8 {[%clk 0:01:38]} 31. Kf2 {[%clk 0:02:09]}  Rf8 {[%clk 0:01:39]} 32. g4 {[%clk 0:02:09]}  fxg4 {[%clk 0:01:35]} 33. Rxg4 {[%clk 0:02:09]}  Rf5 {[%clk 0:01:35]} 34. Reg1 {[%clk 0:02:07]}  Rff7 {[%clk 0:01:21]} 35. R1g3 {[%clk 0:01:56]}  Bf5 {[%clk 0:01:21]} 36. Rf4 {[%clk 0:01:56]}  Bc2 {[%clk 0:01:08]} 37. Rxf7 {[%clk 0:01:52]}  Rxf7 {[%clk 0:01:09]} 38. Rh3 {[%clk 0:01:44]}  Bd1 {[%clk 0:01:09]} 39. Ne6 {[%clk 0:01:39]}  Rf6 {[%clk 0:00:57]} 40. Nf4 {[%clk 0:01:38]}  Kb7 {[%clk 0:00:55]} 41. Rg3 {[%clk 0:01:39]}  Rf7 {[%clk 0:00:54]} 42. Rg6 {[%clk 0:01:39]}  Kc7 {[%clk 0:00:55]} 43. Rxg7 {[%clk 0:01:36]}  Rxg7 {[%clk 0:00:53]} 44. Ne6+ {[%clk 0:01:36]}  Kd6 {[%clk 0:00:54]} 45. Nxg7 {[%clk 0:01:36]}  Bc2 {[%clk 0:00:54]} 46. Ne8+ {[%clk 0:01:32]}  Kd7 {[%clk 0:00:43]} 47. Nf6+ {[%clk 0:01:32]}  Ke6 {[%clk 0:00:43]} 48. Ng4 {[%clk 0:01:33]} 1-0


[Site "https://www.chess.com"]

[Event "Titled Tuesday Blitz March 21 Late 2023"]
[White "Goncalves, Davi Sulzbacher"]
[Black "Smith, Garrett L"]
[WhiteFideId "2154510"]
[BlackFideId "2024829"]
[WhiteElo "2182"]
[BlackElo "2311"]
[Result "1-0"]
[Round "02"]
[TimeControl "180+2"]
[Date "2023.03.21"]
[WhiteClock "0:01:36"]
[BlackClock "0:01:20"]

1. Nf3 {[%clk 0:03:00]}  c5 {[%clk 0:03:00]} 2. d4 {[%clk 0:03:00]}  cxd4 {[%clk 0:03:00]} 3. Nxd4 {[%clk 0:03:01]}  Nc6 {[%clk 0:03:00]} 4. g3 {[%clk 0:02:58]}  e5 {[%clk 0:02:59]} 5. Nb5 {[%clk 0:02:58]}  d6 {[%clk 0:03:00]} 6. Bg2 {[%clk 0:02:55]}  Be6 {[%clk 0:02:55]} 7. O-O {[%clk 0:02:54]}  Be7 {[%clk 0:02:51]} 8. b3 {[%clk 0:02:40]}  d5 {[%clk 0:02:42]} 9. Bxd5 {[%clk 0:02:33]}  Bxd5 {[%clk 0:02:21]} 10. Qxd5 {[%clk 0:02:31]}  Nf6 {[%clk 0:02:19]} 11. Qxd8+ {[%clk 0:02:30]}  Rxd8 {[%clk 0:02:14]} 12. Bb2 {[%clk 0:02:25]}  a6 {[%clk 0:02:12]} 13. N5a3 {[%clk 0:02:19]}  O-O {[%clk 0:02:09]} 14. Nc4 {[%clk 0:02:14]}  Nd7 {[%clk 0:01:56]} 15. a4 {[%clk 0:02:11]}  b5 {[%clk 0:01:53]} 16. axb5 {[%clk 0:02:11]}  axb5 {[%clk 0:01:54]} 17. Ne3 {[%clk 0:02:11]}  Nc5 {[%clk 0:01:52]} 18. Nc3 {[%clk 0:02:08]}  Bg5 {[%clk 0:01:48]} 19. Nxb5 {[%clk 0:01:58]}  Bxe3 {[%clk 0:01:27]} 20. fxe3 {[%clk 0:01:59]}  Ne4 {[%clk 0:01:27]} 21. Rfd1 {[%clk 0:01:53]}  h6 {[%clk 0:01:20]} 22. c4 {[%clk 0:01:44]}  f5 {[%clk 0:01:19]} 23. Ba3 {[%clk 0:01:41]}  Rf7 {[%clk 0:01:19]} 24. Rxd8+ {[%clk 0:01:38]}  Nxd8 {[%clk 0:01:20]} 25. Rd1 {[%clk 0:01:38]}  Ne6 {[%clk 0:01:20]} 26. Rd5 {[%clk 0:01:36]} 1-0


[Site "https://www.chess.com"]

[Event "Titled Tuesday Blitz March 21 Late 2023"]
[White "Coelho, Ramyres Santana"]
[Black "Kretchetov, Alexandre"]
[WhiteFideId "2120690"]
[BlackFideId "4124588"]
[WhiteElo "1888"]
[BlackElo "2514"]
[Result "0-1"]
[Round "02"]
[TimeControl "180+2"]
[Date "2023.03.21"]
[WhiteClock "0:00:17"]
[BlackClock "0:00:19"]

1. e4 {[%clk 0:02:59]}  e5 {[%clk 0:02:57]} 2. Nf3 {[%clk 0:02:55]}  Nc6 {[%clk 0:02:57]} 3. d4 {[%clk 0:02:55]}  exd4 {[%clk 0:02:56]} 4. Bc4 {[%clk 0:02:56]}  Bc5 {[%clk 0:02:55]} 5. c3 {[%clk 0:02:56]}  Nf6 {[%clk 0:02:55]} 6. e5 {[%clk 0:02:48]}  d5 {[%clk 0:02:52]} 7. Bb5 {[%clk 0:02:48]}  Ne4 {[%clk 0:02:51]} 8. O-O {[%clk 0:02:48]}  O-O {[%clk 0:02:46]} 9. cxd4 {[%clk 0:02:48]}  Bb6 {[%clk 0:02:45]} 10. Nc3 {[%clk 0:02:47]}  Bg4 {[%clk 0:02:36]} 11. Be3 {[%clk 0:02:44]}  f6 {[%clk 0:02:30]} 12. Bxc6 {[%clk 0:02:34]}  bxc6 {[%clk 0:02:29]} 13. h3 {[%clk 0:02:32]}  Bh5 {[%clk 0:02:24]} 14. exf6 {[%clk 0:02:31]}  Qxf6 {[%clk 0:02:18]} 15. g4 {[%clk 0:02:11]}  Qxf3 {[%clk 0:02:10]} 16. Qxf3 {[%clk 0:02:09]}  Rxf3 {[%clk 0:02:10]} 17. gxh5 {[%clk 0:02:09]}  Nxc3 {[%clk 0:02:05]} 18. Kg2 {[%clk 0:01:58]}  Rxe3 {[%clk 0:02:03]} 19. fxe3 {[%clk 0:01:55]}  Ne4 {[%clk 0:02:01]} 20. Rac1 {[%clk 0:01:54]}  c5 {[%clk 0:01:59]} 21. dxc5 {[%clk 0:01:52]}  Nxc5 {[%clk 0:01:58]} 22. Rfd1 {[%clk 0:01:46]}  Rd8 {[%clk 0:01:57]} 23. b4 {[%clk 0:01:43]}  Ne4 {[%clk 0:01:52]} 24. a4 {[%clk 0:01:43]}  a5 {[%clk 0:01:44]} 25. bxa5 {[%clk 0:01:42]}  Bxa5 {[%clk 0:01:44]} 26. h6 {[%clk 0:01:28]}  gxh6 {[%clk 0:01:44]} 27. Kh2 {[%clk 0:01:24]}  c5 {[%clk 0:01:37]} 28. Rg1+ {[%clk 0:01:22]}  Kf7 {[%clk 0:01:37]} 29. Rcf1+ {[%clk 0:01:20]}  Nf6 {[%clk 0:01:36]} 30. Rf5 {[%clk 0:01:15]}  Rd6 {[%clk 0:01:34]} 31. Rb1 {[%clk 0:01:11]}  Bb4 {[%clk 0:01:32]} 32. a5 {[%clk 0:01:09]}  Bxa5 {[%clk 0:01:28]} 33. Rb7+ {[%clk 0:01:09]}  Ke6 {[%clk 0:01:26]} 34. Rf3 {[%clk 0:01:00]}  Bc3 {[%clk 0:01:26]} 35. Rb3 {[%clk 0:00:51]}  Be5+ {[%clk 0:01:26]} 36. Kg2 {[%clk 0:00:50]}  c4 {[%clk 0:01:26]} 37. Rb8 {[%clk 0:00:46]}  c3 {[%clk 0:01:26]} 38. Rc8 {[%clk 0:00:46]}  Ra6 {[%clk 0:01:21]} 39. Rf2 {[%clk 0:00:42]}  Ra7 {[%clk 0:01:16]} 40. Rc6+ {[%clk 0:00:41]}  Ke7 {[%clk 0:01:14]} 41. Rc2 {[%clk 0:00:39]}  Kd7 {[%clk 0:01:09]} 42. R6xc3 {[%clk 0:00:35]}  Bxc3 {[%clk 0:01:07]} 43. Rxc3 {[%clk 0:00:36]}  Ke6 {[%clk 0:01:07]} 44. Rc6+ {[%clk 0:00:36]}  Kf5 {[%clk 0:01:06]} 45. Rc2 {[%clk 0:00:37]}  Rg7+ {[%clk 0:01:03]} 46. Kh2 {[%clk 0:00:37]}  Ne4 {[%clk 0:01:03]} 47. Rc1 {[%clk 0:00:32]}  Ra7 {[%clk 0:01:00]} 48. Rf1+ {[%clk 0:00:32]}  Ke5 {[%clk 0:00:59]} 49. h4 {[%clk 0:00:31]}  Ra2+ {[%clk 0:00:57]} 50. Kh3 {[%clk 0:00:29]}  h5 {[%clk 0:00:55]} 51. Rf5+ {[%clk 0:00:24]}  Ke6 {[%clk 0:00:50]} 52. Re5+ {[%clk 0:00:23]}  Kd6 {[%clk 0:00:25]} 53. Rxd5+ {[%clk 0:00:19]}  Kc6 {[%clk 0:00:25]} 54. Rxh5 {[%clk 0:00:14]}  Ra7 {[%clk 0:00:24]} 55. Rh6+ {[%clk 0:00:13]}  Kd5 {[%clk 0:00:24]} 56. Rh5+ {[%clk 0:00:12]}  Ke6 {[%clk 0:00:23]} 57. Rh6+ {[%clk 0:00:10]}  Kf5 {[%clk 0:00:23]} 58. Rh5+ {[%clk 0:00:11]}  Kg6 {[%clk 0:00:23]} 59. Re5 {[%clk 0:00:11]}  Nf6 {[%clk 0:00:23]} 60. Re6 {[%clk 0:00:10]}  Ra4 {[%clk 0:00:21]} 61. e4 {[%clk 0:00:09]}  Rxe4 {[%clk 0:00:20]} 62. Rxe4 {[%clk 0:00:09]}  Nxe4 {[%clk 0:00:20]} 63. Kg4 {[%clk 0:00:09]}  h5+ {[%clk 0:00:19]} 64. Kf4 {[%clk 0:00:10]}  Nf6 {[%clk 0:00:20]} 65. Kf3 {[%clk 0:00:09]}  Kf5 {[%clk 0:00:20]} 66. Kg3 {[%clk 0:00:10]}  Ke4 {[%clk 0:00:20]} 67. Kh3 {[%clk 0:00:10]}  Kf4 {[%clk 0:00:20]} 68. Kh2 {[%clk 0:00:10]}  Kg4 {[%clk 0:00:20]} 69. Kg2 {[%clk 0:00:11]}  Kxh4 {[%clk 0:00:21]} 70. Kh2 {[%clk 0:00:12]}  Kg4 {[%clk 0:00:21]} 71. Kg2 {[%clk 0:00:13]}  h4 {[%clk 0:00:22]} 72. Kh2 {[%clk 0:00:14]}  Ne4 {[%clk 0:00:21]} 73. Kg2 {[%clk 0:00:15]}  h3+ {[%clk 0:00:21]} 74. Kh2 {[%clk 0:00:16]}  Kh4 {[%clk 0:00:21]} 75. Kg1 {[%clk 0:00:16]}  Kg3 {[%clk 0:00:21]} 76. Kh1 {[%clk 0:00:16]}  Nf2+ {[%clk 0:00:21]} 77. Kg1 {[%clk 0:00:16]}  h2+ {[%clk 0:00:21]} 78. Kf1 {[%clk 0:00:16]}  h1=Q+ {[%clk 0:00:21]} 79. Ke2 {[%clk 0:00:17]}  Qe4+ {[%clk 0:00:21]} 80. Kf1 {[%clk 0:00:17]}  Ng4 {[%clk 0:00:19]} 81. Kg1 {[%clk 0:00:17]}  Qe1# {[%clk 0:00:19]} 0-1


[Site "https://www.chess.com"]

[Event "Titled Tuesday Blitz March 21 Late 2023"]
[White "Carbone, Diego"]
[Black "Stachanczyk, Jacek"]
[WhiteFideId "3002179"]
[BlackFideId "1116657"]
[WhiteElo "2266"]
[BlackElo "2084"]
[Result "1-0"]
[Round "02"]
[TimeControl "180+2"]
[Date "2023.03.21"]
[WhiteClock "0:02:15"]
[BlackClock "0:01:00"]

1. d4 {[%clk 0:03:00]}  Nf6 {[%clk 0:02:52]} 2. c4 {[%clk 0:02:58]}  g6 {[%clk 0:02:52]} 3. g3 {[%clk 0:02:58]}  c6 {[%clk 0:02:49]} 4. Nf3 {[%clk 0:02:54]}  Bg7 {[%clk 0:02:48]} 5. Bg2 {[%clk 0:02:53]}  O-O {[%clk 0:02:47]} 6. O-O {[%clk 0:02:52]}  d5 {[%clk 0:02:47]} 7. b3 {[%clk 0:02:51]}  dxc4 {[%clk 0:02:42]} 8. bxc4 {[%clk 0:02:52]}  c5 {[%clk 0:02:42]} 9. Bb2 {[%clk 0:02:53]}  Nc6 {[%clk 0:01:58]} 10. d5 {[%clk 0:02:39]}  Na5 {[%clk 0:01:58]} 11. Nbd2 {[%clk 0:02:39]}  e6 {[%clk 0:01:25]} 12. e4 {[%clk 0:02:39]}  exd5 {[%clk 0:01:25]} 13. cxd5 {[%clk 0:02:33]}  Re8 {[%clk 0:01:25]} 14. Re1 {[%clk 0:02:28]}  Nxe4 {[%clk 0:01:06]} 15. Bxg7 {[%clk 0:02:25]}  Nxd2 {[%clk 0:01:06]} 16. Rxe8+ {[%clk 0:02:22]}  Qxe8 {[%clk 0:01:01]} 17. Qxd2 {[%clk 0:02:20]}  Kxg7 {[%clk 0:01:00]} 18. Qxa5 {[%clk 0:02:15]} 1-0


[Site "https://www.chess.com"]

[Event "Titled Tuesday Blitz March 21 Late 2023"]
[White "angelgab3"]
[Black "sebastianmarinp"]
[WhiteElo "2511"]
[BlackElo "2306"]
[Result "1-0"]
[Round "02"]
[TimeControl "180+2"]
[Date "2023.03.21"]
[WhiteClock "0:01:05"]
[BlackClock "0:00:16"]

1. e4 {[%clk 0:02:58]}  e5 {[%clk 0:02:59]} 2. Nf3 {[%clk 0:02:57]}  Nc6 {[%clk 0:02:58]} 3. Bc4 {[%clk 0:02:58]}  Nf6 {[%clk 0:02:57]} 4. d3 {[%clk 0:02:57]}  Be7 {[%clk 0:02:54]} 5. Nc3 {[%clk 0:02:57]}  O-O {[%clk 0:02:52]} 6. Bg5 {[%clk 0:02:58]}  h6 {[%clk 0:02:48]} 7. Be3 {[%clk 0:02:57]}  d6 {[%clk 0:02:37]} 8. h3 {[%clk 0:02:56]}  Na5 {[%clk 0:02:31]} 9. a3 {[%clk 0:02:53]}  Nxc4 {[%clk 0:02:28]} 10. dxc4 {[%clk 0:02:54]}  Be6 {[%clk 0:02:27]} 11. Qe2 {[%clk 0:02:55]}  Qd7 {[%clk 0:02:09]} 12. O-O-O {[%clk 0:02:50]}  Qc6 {[%clk 0:01:59]} 13. Nd5 {[%clk 0:02:50]}  Rfe8 {[%clk 0:01:51]} 14. Nd2 {[%clk 0:02:10]}  Bd8 {[%clk 0:01:26]} 15. g4 {[%clk 0:02:05]}  Nd7 {[%clk 0:01:16]} 16. h4 {[%clk 0:02:01]}  Nb6 {[%clk 0:01:08]} 17. g5 {[%clk 0:01:56]}  h5 {[%clk 0:00:59]} 18. Bxb6 {[%clk 0:01:28]}  axb6 {[%clk 0:00:48]} 19. Qxh5 {[%clk 0:01:29]}  Qc5 {[%clk 0:00:21]} 20. Rdg1 {[%clk 0:01:09]}  Bxd5 {[%clk 0:00:18]} 21. exd5 {[%clk 0:01:04]}  Qxf2 {[%clk 0:00:16]} 22. Rf1 {[%clk 0:01:05]} 1-0


[Site "https://www.chess.com"]

[Event "Titled Tuesday Blitz March 21 Late 2023"]
[White "Vaglio Munoz, Jaime"]
[Black "Bolanos, Fernando"]
[WhiteFideId "6500145"]
[BlackFideId "3304094"]
[WhiteElo "2199"]
[BlackElo "2166"]
[Result "0-1"]
[Round "02"]
[TimeControl "180+2"]
[Date "2023.03.21"]
[WhiteClock "0:00:14"]
[BlackClock "0:00:05"]

1. Nf3 {[%clk 0:03:00]}  d5 {[%clk 0:02:56]} 2. c4 {[%clk 0:03:00]}  e6 {[%clk 0:02:56]} 3. b3 {[%clk 0:02:59]}  Nf6 {[%clk 0:02:57]} 4. Bb2 {[%clk 0:02:59]}  Be7 {[%clk 0:02:57]} 5. g3 {[%clk 0:02:59]}  O-O {[%clk 0:02:58]} 6. Bg2 {[%clk 0:03:00]}  a5 {[%clk 0:02:58]} 7. O-O {[%clk 0:02:59]}  a4 {[%clk 0:02:58]} 8. Nc3 {[%clk 0:02:58]}  a3 {[%clk 0:02:58]} 9. Bc1 {[%clk 0:02:57]}  Nbd7 {[%clk 0:02:43]} 10. d4 {[%clk 0:02:54]}  dxc4 {[%clk 0:02:36]} 11. bxc4 {[%clk 0:02:53]}  Nb6 {[%clk 0:02:37]} 12. Qb3 {[%clk 0:02:52]}  Bd7 {[%clk 0:02:35]} 13. c5 {[%clk 0:02:51]}  Nbd5 {[%clk 0:02:35]} 14. Bxa3 {[%clk 0:02:45]}  Nxc3 {[%clk 0:02:23]} 15. Qxc3 {[%clk 0:02:44]}  Nd5 {[%clk 0:02:21]} 16. Qb2 {[%clk 0:02:37]}  b5 {[%clk 0:02:08]} 17. e4 {[%clk 0:02:33]}  b4 {[%clk 0:02:08]} 18. exd5 {[%clk 0:02:32]}  bxa3 {[%clk 0:02:08]} 19. Qc3 {[%clk 0:02:18]}  exd5 {[%clk 0:02:07]} 20. Ne5 {[%clk 0:02:08]}  Bb5 {[%clk 0:02:07]} 21. Rfe1 {[%clk 0:02:03]}  Bf6 {[%clk 0:02:02]} 22. c6 {[%clk 0:01:58]}  Re8 {[%clk 0:01:24]} 23. Nd7 {[%clk 0:01:45]}  Rxe1+ {[%clk 0:01:06]} 24. Rxe1 {[%clk 0:01:46]}  Bc4 {[%clk 0:01:07]} 25. h4 {[%clk 0:01:15]}  Bxa2 {[%clk 0:01:01]} 26. Qc5 {[%clk 0:01:10]}  Bb3 {[%clk 0:00:36]} 27. Bxd5 {[%clk 0:01:07]}  Be7 {[%clk 0:00:25]} 28. Rxe7 {[%clk 0:00:44]}  a2 {[%clk 0:00:19]} 29. Bxb3 {[%clk 0:00:37]}  a1=Q+ {[%clk 0:00:19]} 30. Kg2 {[%clk 0:00:37]}  Qa3 {[%clk 0:00:13]} 31. Bxf7+ {[%clk 0:00:31]}  Kh8 {[%clk 0:00:13]} 32. Qe5 {[%clk 0:00:26]}  Qdxe7 {[%clk 0:00:12]} 33. Be6 {[%clk 0:00:24]}  Qad6 {[%clk 0:00:11]} 34. Qf5 {[%clk 0:00:23]}  Qdxe6 {[%clk 0:00:10]} 35. Qb5 {[%clk 0:00:22]}  Qe4+ {[%clk 0:00:10]} 36. Kh2 {[%clk 0:00:19]}  Ra2 {[%clk 0:00:05]} 37. Qb8+ {[%clk 0:00:16]}  Qe8 {[%clk 0:00:06]} 38. Qa7 {[%clk 0:00:15]}  Rxf2+ {[%clk 0:00:05]} 39. Kh3 {[%clk 0:00:15]}  Qf5+ {[%clk 0:00:04]} 40. g4 {[%clk 0:00:14]}  Qf3# {[%clk 0:00:05]} 0-1


[Site "https://www.chess.com"]

[Event "Titled Tuesday Blitz March 21 Late 2023"]
[White "Liu, Kelsey"]
[Black "Miszler, Levente"]
[WhiteFideId "30944481"]
[BlackFideId "763276"]
[WhiteElo "2292"]
[BlackElo "2176"]
[Result "0-1"]
[Round "02"]
[TimeControl "180+2"]
[Date "2023.03.21"]
[WhiteClock "0:00:09"]
[BlackClock "0:00:21"]

1. e4 {[%clk 0:03:00]}  c6 {[%clk 0:02:59]} 2. d4 {[%clk 0:03:00]}  d5 {[%clk 0:02:59]} 3. e5 {[%clk 0:03:01]}  Bf5 {[%clk 0:02:58]} 4. Nc3 {[%clk 0:03:00]}  e6 {[%clk 0:02:56]} 5. g4 {[%clk 0:03:00]}  Bg6 {[%clk 0:02:56]} 6. Nge2 {[%clk 0:03:00]}  Ne7 {[%clk 0:02:52]} 7. h4 {[%clk 0:03:00]}  h5 {[%clk 0:02:51]} 8. Nf4 {[%clk 0:02:58]}  hxg4 {[%clk 0:02:50]} 9. Nxg6 {[%clk 0:02:58]}  Nxg6 {[%clk 0:02:51]} 10. Qxg4 {[%clk 0:02:58]}  Rxh4 {[%clk 0:02:46]} 11. Rxh4 {[%clk 0:02:57]}  Qxh4 {[%clk 0:02:47]} 12. Qf3 {[%clk 0:02:51]}  Qxd4 {[%clk 0:02:42]} 13. Be3 {[%clk 0:02:51]}  Qxe5 {[%clk 0:02:41]} 14. O-O-O {[%clk 0:02:52]}  Nd7 {[%clk 0:02:34]} 15. Bd3 {[%clk 0:02:52]}  Ne7 {[%clk 0:02:15]} 16. Bf4 {[%clk 0:02:39]}  Qf6 {[%clk 0:02:14]} 17. Qg3 {[%clk 0:02:35]}  e5 {[%clk 0:02:12]} 18. Bg5 {[%clk 0:02:29]}  Qd6 {[%clk 0:02:11]} 19. f4 {[%clk 0:02:18]}  O-O-O {[%clk 0:01:52]} 20. fxe5 {[%clk 0:01:59]}  Nxe5 {[%clk 0:01:52]} 21. Bf4 {[%clk 0:01:59]}  Nxd3+ {[%clk 0:01:51]} 22. Rxd3 {[%clk 0:01:59]}  Qg6 {[%clk 0:01:51]} 23. Qh3+ {[%clk 0:01:56]}  Qf5 {[%clk 0:01:51]} 24. Qe3 {[%clk 0:01:28]}  Ng6 {[%clk 0:01:33]} 25. Bh2 {[%clk 0:01:09]}  d4 {[%clk 0:01:14]} 26. Rxd4 {[%clk 0:01:04]}  Rxd4 {[%clk 0:01:14]} 27. Qxd4 {[%clk 0:01:04]}  Bc5 {[%clk 0:01:13]} 28. Qxg7 {[%clk 0:00:51]}  Qf1+ {[%clk 0:01:09]} 29. Kd2 {[%clk 0:00:51]}  Qf2+ {[%clk 0:01:05]} 30. Ne2 {[%clk 0:00:46]}  Qxh2 {[%clk 0:01:01]} 31. Qg8+ {[%clk 0:00:46]}  Nf8 {[%clk 0:01:01]} 32. Qxf7 {[%clk 0:00:44]}  Qd6+ {[%clk 0:00:54]} 33. Ke1 {[%clk 0:00:42]}  Qe6 {[%clk 0:00:54]} 34. Qg7 {[%clk 0:00:35]}  Nd7 {[%clk 0:00:49]} 35. c3 {[%clk 0:00:32]}  Qxa2 {[%clk 0:00:46]} 36. Qh8+ {[%clk 0:00:30]}  Kc7 {[%clk 0:00:44]} 37. b4 {[%clk 0:00:29]}  Bd6 {[%clk 0:00:42]} 38. Nd4 {[%clk 0:00:29]}  Qa1+ {[%clk 0:00:37]} 39. Kd2 {[%clk 0:00:28]}  Qb2+ {[%clk 0:00:37]} 40. Kd3 {[%clk 0:00:28]}  Ne5+ {[%clk 0:00:37]} 41. Ke4 {[%clk 0:00:29]}  Qxc3 {[%clk 0:00:33]} 42. Ne6+ {[%clk 0:00:25]}  Kd7 {[%clk 0:00:22]} 43. Ng7 {[%clk 0:00:10]}  Qf3+ {[%clk 0:00:21]} 44. Kd4 {[%clk 0:00:09]}  Qd3# {[%clk 0:00:21]} 0-1


[Site "https://www.chess.com"]